[Event "*** SCC Grand Prix: Titled Tuesday Blitz"]
[Site "Chess.com"]
[Date "2020.08.25"]
[Round "8"]
[White "RobPeresian"]
[Black "AndreyNeves"]
[Result "1/2-1/2"]
[WhiteElo "2378"]
[BlackElo "2209"]
[TimeControl "180+1"]
[EndTime "11:37:59 PDT"]
[Termination "Game drawn by stalemate"]

1. Nf3 {[%clk 0:03:00.9]} 1... d5 {[%clk 0:02:59.4]} 2. d4 {[%clk 0:03:00.5]}
2... Nf6 {[%clk 0:02:59.2]} 3. c4 {[%clk 0:02:59.9]} 3... e6 {[%clk 0:02:59.2]}
4. Nc3 {[%clk 0:02:57.4]} 4... Be7 {[%clk 0:02:59]} 5. Bg5 {[%clk 0:02:57.4]}
5... h6 {[%clk 0:02:58.2]} 6. Bxf6 {[%clk 0:02:57.1]} 6... Bxf6 {[%clk
0:02:58.2]} 7. e3 {[%clk 0:02:57.8]} 7... O-O {[%clk 0:02:57]} 8. Qc2 {[%clk
0:02:57.1]} 8... c5 {[%clk 0:02:56.1]} 9. cxd5 {[%clk 0:02:42.1]} 9... exd5
{[%clk 0:02:54]} 10. dxc5 {[%clk 0:02:38.2]} 10... Qa5 {[%clk 0:02:51.5]} 11.
Rc1 {[%clk 0:02:37.1]} 11... Qxc5 {[%clk 0:02:39.4]} 12. Be2 {[%clk 0:02:23.5]}
12... Nc6 {[%clk 0:02:37.9]} 13. O-O {[%clk 0:02:10.9]} 13... d4 {[%clk
0:02:34.5]} 14. Ne4 {[%clk 0:02:04.3]} 14... Qe7 {[%clk 0:02:19.1]} 15. Nxf6+
{[%clk 0:02:00.6]} 15... Qxf6 {[%clk 0:02:19.1]} 16. Nxd4 {[%clk 0:01:54.4]}
16... Nxd4 {[%clk 0:02:19]} 17. exd4 {[%clk 0:01:55]} 17... Qxd4 {[%clk
0:02:19]} 18. Rfd1 {[%clk 0:01:55.5]} 18... Qb6 {[%clk 0:02:13.7]} 19. b3 {[%clk
0:01:45.7]} 19... Be6 {[%clk 0:02:08.7]} 20. Qc7 {[%clk 0:01:44.5]} 20... Qxc7
{[%clk 0:01:55.1]} 21. Rxc7 {[%clk 0:01:45.4]} 21... Rfc8 {[%clk 0:01:52]} 22.
Rxb7 {[%clk 0:01:15.8]} 22... Rc2 {[%clk 0:01:47.7]} 23. Bf3 {[%clk 0:01:07.1]}
23... Rxa2 {[%clk 0:01:43.1]} 24. b4 {[%clk 0:01:05.6]} 24... Rc8 {[%clk
0:01:35.9]} 25. b5 {[%clk 0:00:53.8]} 25... g6 {[%clk 0:01:35.2]} 26. b6 {[%clk
0:00:53.1]} 26... axb6 {[%clk 0:01:31.9]} 27. Rxb6 {[%clk 0:00:53.4]} 27... Rcc2
{[%clk 0:01:29.8]} 28. Rbb1 {[%clk 0:00:47.3]} 28... Rxf2 {[%clk 0:01:27]} 29.
Ra1 {[%clk 0:00:47.2]} 29... Rxa1 {[%clk 0:01:17.8]} 30. Rxa1 {[%clk 0:00:46.4]}
30... Rb2 {[%clk 0:01:15.3]} 31. Rf1 {[%clk 0:00:30.8]} 31... Kg7 {[%clk
0:01:13.6]} 32. h3 {[%clk 0:00:29.3]} 32... Bc4 {[%clk 0:01:10]} 33. Rf2 {[%clk
0:00:29.1]} 33... Rb1+ {[%clk 0:01:07.1]} 34. Kh2 {[%clk 0:00:29.2]} 34... h5
{[%clk 0:01:01.7]} 35. Rc2 {[%clk 0:00:26.9]} 35... Be6 {[%clk 0:00:55.6]} 36.
Rc7 {[%clk 0:00:24.3]} 36... Kf6 {[%clk 0:00:53]} 37. Rb7 {[%clk 0:00:24.4]}
37... Re1 {[%clk 0:00:43.9]} 38. Rb6 {[%clk 0:00:23.3]} 38... Ke5 {[%clk
0:00:37.2]} 39. Rb2 {[%clk 0:00:21.1]} 39... Kf4 {[%clk 0:00:30.3]} 40. Rb4+
{[%clk 0:00:18.9]} 40... Ke5 {[%clk 0:00:26.8]} 41. Rb2 {[%clk 0:00:18.7]} 41...
h4 {[%clk 0:00:20.8]} 42. Re2+ {[%clk 0:00:18.4]} 42... Rxe2 {[%clk 0:00:20.9]}
43. Bxe2 {[%clk 0:00:19.3]} 43... Kf4 {[%clk 0:00:17.2]} 44. Bf3 {[%clk
0:00:16.8]} 44... Bc4 {[%clk 0:00:15]} 45. Bb7 {[%clk 0:00:15.3]} 45... Bd3
{[%clk 0:00:11.8]} 46. Bc6 {[%clk 0:00:14]} 46... g5 {[%clk 0:00:10]} 47. Bd5
{[%clk 0:00:13.3]} 47... f5 {[%clk 0:00:09.1]} 48. Be6 {[%clk 0:00:11.2]} 48...
Be4 {[%clk 0:00:08.7]} 49. Bd7 {[%clk 0:00:10.9]} 49... g4 {[%clk 0:00:08]} 50.
hxg4 {[%clk 0:00:10.5]} 50... fxg4 {[%clk 0:00:08.9]} 51. g3+ {[%clk 0:00:06.6]}
51... hxg3+ {[%clk 0:00:05.5]} 52. Kg1 {[%clk 0:00:06.8]} 52... Bf5 {[%clk
0:00:05.6]} 53. Bc6 {[%clk 0:00:06.8]} 53... Be4 {[%clk 0:00:05.7]} 54. Bd7
{[%clk 0:00:07.1]} 54... Bf3 {[%clk 0:00:05.9]} 55. Be8 {[%clk 0:00:07.1]} 55...
Kg5 {[%clk 0:00:06]} 56. Bd7 {[%clk 0:00:07]} 56... Kh4 {[%clk 0:00:06.1]} 57.
Be8 {[%clk 0:00:07.2]} 57... Kh3 {[%clk 0:00:06.1]} 58. Bd7 {[%clk 0:00:07.2]}
58... g2 {[%clk 0:00:06.1]} 59. Be8 {[%clk 0:00:07.4]} 59... Kg3 {[%clk
0:00:06.5]} 60. Bd7 {[%clk 0:00:07.5]} 60... Kf4 {[%clk 0:00:07]} 61. Be8 {[%clk
0:00:07.7]} 61... Be4 {[%clk 0:00:07.7]} 62. Bd7 {[%clk 0:00:07.6]} 62... Bf5
{[%clk 0:00:08.6]} 63. Bc6 {[%clk 0:00:07.5]} 63... g3 {[%clk 0:00:07.5]} 64.
Bxg2 {[%clk 0:00:06.7]} 64... Bg4 {[%clk 0:00:06.8]} 65. Bc6 {[%clk 0:00:06.2]}
65... Bf3 {[%clk 0:00:07.7]} 66. Bxf3 {[%clk 0:00:05.4]} 66... Kxf3 {[%clk
0:00:07.7]} 67. Kf1 {[%clk 0:00:06]} 67... g2+ {[%clk 0:00:08]} 68. Kg1 {[%clk
0:00:06.5]} 68... Kg3 {[%clk 0:00:08.3]} 1/2-1/2

[Event "*** SCC Grand Prix: Titled Tuesday Blitz"]
[Site "Chess.com"]
[Date "2020.08.25"]
[Round "8"]
[White "elcandado"]
[Black "Keures"]
[Result "0-1"]
[WhiteElo "2476"]
[BlackElo "2301"]
[TimeControl "180+1"]
[EndTime "11:38:11 PDT"]
[Termination "Keures won on time"]

1. d4 {[%clk 0:03:00.9]} 1... Nf6 {[%clk 0:02:50]} 2. Bf4 {[%clk 0:03:00.4]}
2... e6 {[%clk 0:02:50.2]} 3. e3 {[%clk 0:03:00]} 3... Bd6 {[%clk 0:02:50.9]} 4.
Bg3 {[%clk 0:02:59.5]} 4... Bxg3 {[%clk 0:02:36.7]} 5. hxg3 {[%clk 0:02:58.4]}
5... d5 {[%clk 0:02:37.6]} 6. Bd3 {[%clk 0:02:57.3]} 6... c5 {[%clk 0:02:38.5]}
7. c3 {[%clk 0:02:57]} 7... Qb6 {[%clk 0:02:38.5]} 8. b3 {[%clk 0:02:40.3]} 8...
Bd7 {[%clk 0:02:38.1]} 9. Nf3 {[%clk 0:02:39.8]} 9... Bb5 {[%clk 0:02:37.9]} 10.
O-O {[%clk 0:02:33.6]} 10... Bxd3 {[%clk 0:02:37.6]} 11. Qxd3 {[%clk 0:02:34.5]}
11... O-O {[%clk 0:02:36.4]} 12. Nbd2 {[%clk 0:02:34.1]} 12... Nc6 {[%clk
0:02:33.5]} 13. Ne5 {[%clk 0:02:28.3]} 13... cxd4 {[%clk 0:02:32.1]} 14. cxd4
{[%clk 0:02:14.4]} 14... Nxe5 {[%clk 0:02:20.4]} 15. dxe5 {[%clk 0:02:15.3]}
15... Ng4 {[%clk 0:02:20.5]} 16. Qd4 {[%clk 0:02:07.9]} 16... Qxd4 {[%clk
0:02:17]} 17. exd4 {[%clk 0:02:08.8]} 17... Rfc8 {[%clk 0:02:11.5]} 18. Rfc1
{[%clk 0:02:06.9]} 18... Nh6 {[%clk 0:02:07.4]} 19. Kf1 {[%clk 0:02:05]} 19...
Nf5 {[%clk 0:02:05.4]} 20. Nf3 {[%clk 0:02:05.4]} 20... h5 {[%clk 0:02:05.4]}
21. Ke2 {[%clk 0:02:05.1]} 21... Kf8 {[%clk 0:02:05.4]} 22. Kd3 {[%clk 0:02:05]}
22... Ke7 {[%clk 0:02:04.9]} 23. Rc5 {[%clk 0:02:02.3]} 23... b6 {[%clk
0:02:04.7]} 24. Rcc1 {[%clk 0:01:59]} 24... f6 {[%clk 0:02:02.7]} 25. Rh1 {[%clk
0:01:51.6]} 25... Rc6 {[%clk 0:01:48.2]} 26. Rac1 {[%clk 0:01:50.5]} 26... Rxc1
{[%clk 0:01:45.3]} 27. Rxc1 {[%clk 0:01:49.7]} 27... Kd7 {[%clk 0:01:45.4]} 28.
Rh1 {[%clk 0:01:49.2]} 28... Rc8 {[%clk 0:01:20.6]} 29. Kd2 {[%clk 0:01:38.8]}
29... Rh8 {[%clk 0:01:04.8]} 30. g4 {[%clk 0:01:36.5]} 30... hxg4 {[%clk
0:01:05.3]} 31. Rxh8 {[%clk 0:01:33.6]} 31... gxf3 {[%clk 0:01:05.7]} 32. gxf3
{[%clk 0:01:29]} 32... Nxd4 {[%clk 0:01:05.2]} 33. exf6 {[%clk 0:01:28.9]} 33...
gxf6 {[%clk 0:01:02.3]} 34. Rh7+ {[%clk 0:01:29.3]} 34... Kd6 {[%clk 0:01:01.7]}
35. Rxa7 {[%clk 0:01:30.2]} 35... Nxf3+ {[%clk 0:01:01.5]} 36. Ke3 {[%clk
0:01:30.1]} 36... Ne5 {[%clk 0:00:57.1]} 37. Rb7 {[%clk 0:01:17.4]} 37... Kc6
{[%clk 0:00:53.8]} 38. Re7 {[%clk 0:01:12.4]} 38... Kd6 {[%clk 0:00:53]} 39. Re8
{[%clk 0:01:12.4]} 39... Kd7 {[%clk 0:00:51.1]} 40. Rf8 {[%clk 0:01:04.1]} 40...
f5 {[%clk 0:00:48]} 41. f4 {[%clk 0:01:00.7]} 41... Nc6 {[%clk 0:00:40.9]} 42.
a3 {[%clk 0:00:54.3]} 42... Na5 {[%clk 0:00:39.7]} 43. b4 {[%clk 0:00:48]} 43...
Nc4+ {[%clk 0:00:39.3]} 44. Kd4 {[%clk 0:00:47.6]} 44... Nxa3 {[%clk 0:00:35.4]}
45. Ra8 {[%clk 0:00:41.3]} 45... Nc4 {[%clk 0:00:32.3]} 46. Rh8 {[%clk
0:00:32.1]} 46... Kd6 {[%clk 0:00:32.2]} 47. Rh7 {[%clk 0:00:31.4]} 47... Kc6
{[%clk 0:00:31.7]} 48. Re7 {[%clk 0:00:24.2]} 48... Kd6 {[%clk 0:00:31.2]} 49.
Re8 {[%clk 0:00:21.8]} 49... Na3 {[%clk 0:00:29.8]} 50. Rd8+ {[%clk 0:00:18.6]}
50... Kc7 {[%clk 0:00:29.6]} 51. Rh8 {[%clk 0:00:18.1]} 51... Kd6 {[%clk
0:00:28.2]} 52. Rb8 {[%clk 0:00:15.8]} 52... Nc4 {[%clk 0:00:27.4]} 53. Rh8
{[%clk 0:00:14.7]} 53... Kc6 {[%clk 0:00:24.7]} 54. Rh6 {[%clk 0:00:13.4]} 54...
Kd7 {[%clk 0:00:24.1]} 55. Rg6 {[%clk 0:00:13.6]} 55... Kd6 {[%clk 0:00:24]} 56.
Rg7 {[%clk 0:00:13.1]} 56... Kc6 {[%clk 0:00:24.3]} 57. Rh7 {[%clk 0:00:13.1]}
57... Nd6 {[%clk 0:00:24]} 58. Ke5 {[%clk 0:00:11]} 58... Nb5 {[%clk 0:00:19.5]}
59. Kxe6 {[%clk 0:00:10.2]} 59... d4 {[%clk 0:00:20]} 60. Kxf5 {[%clk
0:00:10.3]} 60... d3 {[%clk 0:00:20.5]} 61. Kg6 {[%clk 0:00:09.1]} 61... Kd5
{[%clk 0:00:15.7]} 62. f5 {[%clk 0:00:06.5]} 62... Kc4 {[%clk 0:00:15.4]} 63. f6
{[%clk 0:00:04.1]} 63... Nd4 {[%clk 0:00:12.5]} 64. Rh1 {[%clk 0:00:05]} 64...
Kxb4 {[%clk 0:00:10.9]} 65. f7 {[%clk 0:00:04.9]} 65... Ne6 {[%clk 0:00:10]} 66.
Kf6 {[%clk 0:00:05]} 66... Nf8 {[%clk 0:00:10]} 67. Ke7 {[%clk 0:00:03.3]} 67...
Ng6+ {[%clk 0:00:10.2]} 68. Kf6 {[%clk 0:00:02.8]} 68... Nf8 {[%clk 0:00:10.5]}
69. Kg7 {[%clk 0:00:02.1]} 69... Nd7 {[%clk 0:00:10.7]} 70. Kg8 {[%clk
0:00:01.3]} 70... Kc3 {[%clk 0:00:09.6]} 71. Kg7 {[%clk 0:00:01]} 71... b5
{[%clk 0:00:08.9]} 0-1

[Event "*** SCC Grand Prix: Titled Tuesday Blitz"]
[Site "Chess.com"]
[Date "2020.08.25"]
[Round "8"]
[White "Smascher17"]
[Black "Sacbutt"]
[Result "0-1"]
[WhiteElo "2356"]
[BlackElo "2213"]
[TimeControl "180+1"]
[EndTime "11:38:37 PDT"]
[Termination "Sacbutt won by checkmate"]

1. e4 {[%clk 0:03:00.9]} 1... c5 {[%clk 0:02:59.2]} 2. Nf3 {[%clk 0:03:00.5]}
2... d6 {[%clk 0:02:59.6]} 3. d4 {[%clk 0:03:00.5]} 3... cxd4 {[%clk 0:03:00.5]}
4. Nxd4 {[%clk 0:03:01.4]} 4... Nf6 {[%clk 0:03:01.1]} 5. Nc3 {[%clk 0:03:01.7]}
5... a6 {[%clk 0:03:01.8]} 6. Bg5 {[%clk 0:03:01.2]} 6... e6 {[%clk 0:03:01.5]}
7. f4 {[%clk 0:03:01.1]} 7... Be7 {[%clk 0:03:01]} 8. Qf3 {[%clk 0:03:00.8]}
8... Nbd7 {[%clk 0:03:00.2]} 9. O-O-O {[%clk 0:03:00.6]} 9... Qc7 {[%clk
0:03:00.8]} 10. f5 {[%clk 0:03:00.1]} 10... e5 {[%clk 0:02:54.4]} 11. Nde2
{[%clk 0:02:59.5]} 11... b5 {[%clk 0:02:49.9]} 12. Bxf6 {[%clk 0:02:59.1]} 12...
Nxf6 {[%clk 0:02:48.5]} 13. Nd5 {[%clk 0:03:00]} 13... Nxd5 {[%clk 0:02:46.7]}
14. exd5 {[%clk 0:03:00.9]} 14... Bb7 {[%clk 0:02:35]} 15. Ng3 {[%clk
0:03:00.3]} 15... O-O-O {[%clk 0:02:26.8]} 16. Bd3 {[%clk 0:02:56.3]} 16... Qc5
{[%clk 0:02:17.4]} 17. Be4 {[%clk 0:02:56.3]} 17... Kb8 {[%clk 0:02:11.5]} 18.
h4 {[%clk 0:02:54.8]} 18... Rc8 {[%clk 0:02:09.6]} 19. Kb1 {[%clk 0:02:53.2]}
19... g6 {[%clk 0:01:59.4]} 20. f6 {[%clk 0:02:50.9]} 20... Bd8 {[%clk
0:01:57.6]} 21. h5 {[%clk 0:02:50.2]} 21... Bb6 {[%clk 0:01:54.3]} 22. c3 {[%clk
0:02:16.1]} 22... a5 {[%clk 0:01:48.4]} 23. Ne2 {[%clk 0:01:51.1]} 23... Ba6
{[%clk 0:01:35.9]} 24. g4 {[%clk 0:01:49.1]} 24... b4 {[%clk 0:01:25]} 25. cxb4
{[%clk 0:01:39.5]} 25... Qxb4 {[%clk 0:01:11.6]} 26. hxg6 {[%clk 0:01:36.4]}
26... hxg6 {[%clk 0:01:10.7]} 27. g5 {[%clk 0:01:19.7]} 27... Rxh1 {[%clk
0:01:03.5]} 28. Rxh1 {[%clk 0:01:19.7]} 28... Qd2 {[%clk 0:00:59]} 29. Nc3
{[%clk 0:01:11.1]} 29... Qxg5 {[%clk 0:00:52]} 30. a3 {[%clk 0:01:05]} 30... Qd2
{[%clk 0:00:41.1]} 31. Rd1 {[%clk 0:01:01.2]} 31... Qe3 {[%clk 0:00:36.6]} 32.
Qxe3 {[%clk 0:00:56]} 32... Bxe3 {[%clk 0:00:37.5]} 33. Rh1 {[%clk 0:00:56.5]}
33... Bg5 {[%clk 0:00:36.2]} 34. Rh7 {[%clk 0:00:56.2]} 34... Rc7 {[%clk
0:00:36.1]} 35. Rh8+ {[%clk 0:00:45]} 35... Kb7 {[%clk 0:00:28.1]} 36. Rh2
{[%clk 0:00:36.3]} 36... Bxf6 {[%clk 0:00:26.4]} 37. Rg2 {[%clk 0:00:36.3]}
37... Bd8 {[%clk 0:00:20.4]} 38. Bc2 {[%clk 0:00:35.4]} 38... Bc4 {[%clk
0:00:20.1]} 39. b3 {[%clk 0:00:33]} 39... Bxb3 {[%clk 0:00:18.3]} 40. Bxb3
{[%clk 0:00:32.2]} 40... Rxc3 {[%clk 0:00:18.2]} 41. Kb2 {[%clk 0:00:32.7]}
41... Rf3 {[%clk 0:00:17.2]} 42. Bd1 {[%clk 0:00:30.3]} 42... Rf4 {[%clk
0:00:16.2]} 43. Kb3 {[%clk 0:00:27.6]} 43... Bb6 {[%clk 0:00:16.2]} 44. Bc2
{[%clk 0:00:26.8]} 44... Rf3+ {[%clk 0:00:15]} 45. Kb2 {[%clk 0:00:20.9]} 45...
Rf2 {[%clk 0:00:14.7]} 46. Rg4 {[%clk 0:00:20]} 46... Rf4 {[%clk 0:00:13.9]} 47.
Rg2 {[%clk 0:00:19.5]} 47... Bd4+ {[%clk 0:00:14.3]} 48. Kb3 {[%clk 0:00:18.4]}
48... Kb6 {[%clk 0:00:14.7]} 49. Bd3 {[%clk 0:00:18]} 49... Rf3 {[%clk
0:00:14.9]} 50. Kc4 {[%clk 0:00:17.7]} 50... Bc5 {[%clk 0:00:13.2]} 51. a4
{[%clk 0:00:17.5]} 51... Bb4 {[%clk 0:00:12.9]} 52. Rc2 {[%clk 0:00:16.7]} 52...
Rf4+ {[%clk 0:00:12.4]} 53. Kb3 {[%clk 0:00:16.2]} 53... Bc5 {[%clk 0:00:12]}
54. Rg2 {[%clk 0:00:15.4]} 54... Rb4+ {[%clk 0:00:12.4]} 55. Kc2 {[%clk
0:00:15.4]} 55... Rxa4 {[%clk 0:00:12.3]} 56. Kb3 {[%clk 0:00:15]} 56... Ra3+
{[%clk 0:00:11.7]} 57. Kc4 {[%clk 0:00:14.6]} 57... Ra4+ {[%clk 0:00:11.1]} 58.
Kc3 {[%clk 0:00:14.6]} 58... Rf4 {[%clk 0:00:12]} 59. Rb2+ {[%clk 0:00:14.3]}
59... Kc7 {[%clk 0:00:11.7]} 60. Rh2 {[%clk 0:00:15.2]} 60... e4 {[%clk
0:00:12]} 61. Bc4 {[%clk 0:00:13.4]} 61... e3 {[%clk 0:00:11.8]} 62. Rh7 {[%clk
0:00:13.1]} 62... Rf2 {[%clk 0:00:10.8]} 63. Rh1 {[%clk 0:00:09.6]} 63... a4
{[%clk 0:00:11]} 64. Rb1 {[%clk 0:00:09.1]} 64... a3 {[%clk 0:00:11]} 65. Ba6
{[%clk 0:00:09.3]} 65... e2 {[%clk 0:00:10.1]} 66. Rb7+ {[%clk 0:00:09.5]} 66...
Kd8 {[%clk 0:00:10.3]} 67. Bxe2 {[%clk 0:00:08.4]} 67... Rxe2 {[%clk 0:00:10.3]}
68. Rxf7 {[%clk 0:00:09.3]} 68... a2 {[%clk 0:00:09.7]} 69. Rf8+ {[%clk
0:00:10.2]} 69... Ke7 {[%clk 0:00:09.4]} 70. Rf1 {[%clk 0:00:10.2]} 70... g5
{[%clk 0:00:08.6]} 71. Kb3 {[%clk 0:00:10.2]} 71... g4 {[%clk 0:00:08.1]} 72.
Kc3 {[%clk 0:00:10.5]} 72... g3 {[%clk 0:00:08.2]} 73. Kb3 {[%clk 0:00:10.7]}
73... g2 {[%clk 0:00:08.1]} 74. Rg1 {[%clk 0:00:10.2]} 74... Bxg1 {[%clk
0:00:06.8]} 75. Kc4 {[%clk 0:00:10.2]} 75... Bc5 {[%clk 0:00:06.5]} 76. Kd3
{[%clk 0:00:10.7]} 76... Re3+ {[%clk 0:00:06.2]} 77. Kc4 {[%clk 0:00:11]} 77...
Rg3 {[%clk 0:00:04.1]} 78. Kb5 {[%clk 0:00:11.9]} 78... Kf6 {[%clk 0:00:04]} 79.
Kc6 {[%clk 0:00:12.8]} 79... Ke5 {[%clk 0:00:04.9]} 80. Kd7 {[%clk 0:00:13]}
80... g1=Q {[%clk 0:00:05.6]} 81. Kc6 {[%clk 0:00:13.9]} 81... Qf2 {[%clk
0:00:06]} 82. Kc7 {[%clk 0:00:13.8]} 82... Qe2 {[%clk 0:00:06.3]} 83. Kc6 {[%clk
0:00:14.7]} 83... Qe4 {[%clk 0:00:06.7]} 84. Kc7 {[%clk 0:00:15.6]} 84... Qxd5
{[%clk 0:00:07]} 85. Kc8 {[%clk 0:00:15.4]} 85... Rg8+ {[%clk 0:00:07.2]} 86.
Kc7 {[%clk 0:00:16.3]} 86... Rg7+ {[%clk 0:00:07.7]} 87. Kd8 {[%clk 0:00:16.3]}
87... Qg8# {[%clk 0:00:08.2]} 0-1

[Event "*** SCC Grand Prix: Titled Tuesday Blitz"]
[Site "Chess.com"]
[Date "2020.08.25"]
[Round "9"]
[White "larisakalinina"]
[Black "BanjoKazooieN64"]
[Result "0-1"]
[WhiteElo "1965"]
[BlackElo "2348"]
[TimeControl "180+1"]
[EndTime "11:41:53 PDT"]
[Termination "BanjoKazooieN64 won by resignation"]

1. e4 {[%clk 0:03:00.9]} 1... e5 {[%clk 0:03:00]} 2. Nf3 {[%clk 0:02:59.4]} 2...
Nc6 {[%clk 0:03:00]} 3. d4 {[%clk 0:02:59.5]} 3... exd4 {[%clk 0:02:59.8]} 4.
Nxd4 {[%clk 0:02:59.8]} 4... Bc5 {[%clk 0:02:59.1]} 5. Be3 {[%clk 0:02:57.6]}
5... Bb6 {[%clk 0:02:58.7]} 6. g3 {[%clk 0:02:50.3]} 6... Nf6 {[%clk 0:02:58.3]}
7. Bg2 {[%clk 0:02:49]} 7... O-O {[%clk 0:02:58.4]} 8. O-O {[%clk 0:02:47.1]}
8... d5 {[%clk 0:02:58]} 9. Nxc6 {[%clk 0:02:34.6]} 9... bxc6 {[%clk 0:02:57.6]}
10. Bxb6 {[%clk 0:02:33.9]} 10... axb6 {[%clk 0:02:57.3]} 11. e5 {[%clk
0:02:33.3]} 11... Ng4 {[%clk 0:02:56.3]} 12. Re1 {[%clk 0:02:23.9]} 12... Re8
{[%clk 0:02:54.4]} 13. f4 {[%clk 0:02:19]} 13... Qe7 {[%clk 0:02:45.1]} 14. h3
{[%clk 0:02:18.2]} 14... Qc5+ {[%clk 0:02:44]} 0-1

[Event "*** SCC Grand Prix: Titled Tuesday Blitz"]
[Site "Chess.com"]
[Date "2020.08.25"]
[Round "9"]
[White "ChainsOfFantasia"]
[Black "boasovietica"]
[Result "0-1"]
[WhiteElo "2479"]
[BlackElo "2403"]
[TimeControl "180+1"]
[EndTime "11:42:12 PDT"]
[Termination "boasovietica won by resignation"]

1. c4 {[%clk 0:03:00.9]} 1... c5 {[%clk 0:02:54.6]} 2. Nf3 {[%clk 0:03:00.6]}
2... Nc6 {[%clk 0:02:54.6]} 3. Nc3 {[%clk 0:03:01]} 3... e5 {[%clk 0:02:53.4]}
4. e3 {[%clk 0:03:00.7]} 4... Nf6 {[%clk 0:02:51.4]} 5. d4 {[%clk 0:03:01]} 5...
cxd4 {[%clk 0:02:48.8]} 6. exd4 {[%clk 0:03:00.7]} 6... e4 {[%clk 0:02:49.4]} 7.
Ng5 {[%clk 0:02:46.6]} 7... Bb4 {[%clk 0:02:35.9]} 8. d5 {[%clk 0:02:45.8]} 8...
Ne5 {[%clk 0:02:11.5]} 9. Qd4 {[%clk 0:02:44.1]} 9... d6 {[%clk 0:02:08.6]} 10.
Qxe4 {[%clk 0:02:22.9]} 10... Nxe4 {[%clk 0:02:06]} 0-1

[Event "*** SCC Grand Prix: Titled Tuesday Blitz"]
[Site "Chess.com"]
[Date "2020.08.25"]
[Round "9"]
[White "labdalla"]
[Black "JozefKneht"]
[Result "1-0"]
[WhiteElo "2281"]
[BlackElo "2432"]
[TimeControl "180+1"]
[EndTime "11:42:35 PDT"]
[Termination "labdalla won by resignation"]

1. d4 {[%clk 0:03:00.9]} 1... d5 {[%clk 0:02:59.4]} 2. c4 {[%clk 0:03:01.2]}
2... e6 {[%clk 0:02:59.6]} 3. Nf3 {[%clk 0:03:01.1]} 3... Nf6 {[%clk 0:02:59.3]}
4. Nc3 {[%clk 0:03:01.4]} 4... Be7 {[%clk 0:02:58]} 5. Bf4 {[%clk 0:03:01.6]}
5... O-O {[%clk 0:02:57.2]} 6. e3 {[%clk 0:03:02.1]} 6... dxc4 {[%clk
0:02:57.7]} 7. Bxc4 {[%clk 0:03:01.6]} 7... c5 {[%clk 0:02:58.6]} 8. O-O {[%clk
0:03:00.8]} 8... Nc6 {[%clk 0:02:58.2]} 9. Qe2 {[%clk 0:02:59.6]} 9... cxd4
{[%clk 0:02:57.8]} 10. Rad1 {[%clk 0:02:52.3]} 10... Bd7 {[%clk 0:02:55.5]} 11.
exd4 {[%clk 0:02:44.3]} 11... Nb4 {[%clk 0:02:53.4]} 12. d5 {[%clk 0:02:17.9]}
12... exd5 {[%clk 0:02:47.9]} 13. Nxd5 {[%clk 0:02:18.8]} 13... Nbxd5 {[%clk
0:02:39.6]} 14. Bxd5 {[%clk 0:02:19.7]} 14... Nxd5 {[%clk 0:02:11.4]} 15. Rxd5
{[%clk 0:02:20.6]} 15... Re8 {[%clk 0:02:10.9]} 16. Qd2 {[%clk 0:02:07.2]} 1-0

[Event "*** SCC Grand Prix: Titled Tuesday Blitz"]
[Site "Chess.com"]
[Date "2020.08.25"]
[Round "9"]
[White "MarcoRiehle"]
[Black "Xeniya2005"]
[Result "1-0"]
[WhiteElo "2735"]
[BlackElo "2390"]
[TimeControl "180+1"]
[EndTime "11:43:44 PDT"]
[Termination "MarcoRiehle won by resignation"]

1. e4 {[%clk 0:03:00.8]} 1... e6 {[%clk 0:02:59.3]} 2. c4 {[%clk 0:03:00.1]}
2... d5 {[%clk 0:02:58.3]} 3. cxd5 {[%clk 0:03:01]} 3... exd5 {[%clk 0:02:58.8]}
4. Qb3 {[%clk 0:03:01.3]} 4... dxe4 {[%clk 0:02:55.3]} 5. Bc4 {[%clk 0:03:01.1]}
5... Qe7 {[%clk 0:02:43.7]} 6. Nc3 {[%clk 0:02:57.5]} 6... c6 {[%clk 0:02:40.3]}
7. d4 {[%clk 0:02:53.8]} 7... Nf6 {[%clk 0:02:32.4]} 8. Bg5 {[%clk 0:02:50.5]}
8... Bf5 {[%clk 0:02:26]} 9. O-O-O {[%clk 0:02:47.9]} 9... h6 {[%clk 0:02:20.6]}
10. Bxf6 {[%clk 0:02:48.1]} 10... Qxf6 {[%clk 0:02:19.3]} 11. Qxb7 {[%clk
0:02:46.7]} 11... Bd6 {[%clk 0:02:06.8]} 12. Qxa8 {[%clk 0:02:46.4]} 12... O-O
{[%clk 0:02:03.5]} 13. Qxa7 {[%clk 0:02:44.9]} 13... Qg5+ {[%clk 0:02:02.7]} 14.
Kb1 {[%clk 0:02:42.9]} 14... e3+ {[%clk 0:02:01.5]} 15. Ka1 {[%clk 0:02:43.1]}
15... exf2 {[%clk 0:02:01.2]} 16. Nge2 {[%clk 0:02:38.9]} 16... Qxg2 {[%clk
0:02:00.2]} 17. d5 {[%clk 0:02:35.2]} 17... c5 {[%clk 0:01:55.3]} 18. Qb6 {[%clk
0:02:28.8]} 18... Be5 {[%clk 0:01:40.2]} 19. Qxc5 {[%clk 0:02:28.4]} 19... Nd7
{[%clk 0:01:30.4]} 20. Qe3 {[%clk 0:02:27.5]} 20... Bxh2 {[%clk 0:01:15.3]} 21.
Rhf1 {[%clk 0:02:21.6]} 1-0

[Event "*** SCC Grand Prix: Titled Tuesday Blitz"]
[Site "Chess.com"]
[Date "2020.08.25"]
[Round "9"]
[White "Playgood28"]
[Black "lucachess49"]
[Result "1-0"]
[WhiteElo "2354"]
[BlackElo "2451"]
[TimeControl "180+1"]
[EndTime "11:44:19 PDT"]
[Termination "Playgood28 won by resignation"]

1. d4 {[%clk 0:03:00.9]} 1... Nf6 {[%clk 0:02:59.7]} 2. c4 {[%clk 0:03:00.6]}
2... e6 {[%clk 0:02:59.8]} 3. Nc3 {[%clk 0:03:00.6]} 3... Bb4 {[%clk 0:02:58]}
4. Qc2 {[%clk 0:03:00.5]} 4... O-O {[%clk 0:02:58.5]} 5. a3 {[%clk 0:03:00.3]}
5... Bxc3+ {[%clk 0:02:57.5]} 6. Qxc3 {[%clk 0:03:00.3]} 6... b6 {[%clk
0:02:57]} 7. e3 {[%clk 0:03:00.1]} 7... Bb7 {[%clk 0:02:57.4]} 8. Nf3 {[%clk
0:03:00]} 8... d6 {[%clk 0:02:57.6]} 9. Be2 {[%clk 0:02:59.8]} 9... Nbd7 {[%clk
0:02:58.4]} 10. b4 {[%clk 0:02:58.8]} 10... Ne4 {[%clk 0:02:58.7]} 11. Qc2
{[%clk 0:02:58.4]} 11... f5 {[%clk 0:02:59.3]} 12. O-O {[%clk 0:02:57.1]} 12...
Qf6 {[%clk 0:02:59.1]} 13. Bb2 {[%clk 0:02:47.5]} 13... Qh6 {[%clk 0:02:41.7]}
14. Nd2 {[%clk 0:02:33.8]} 14... Ndf6 {[%clk 0:02:30.6]} 15. Nxe4 {[%clk
0:02:24.5]} 15... Nxe4 {[%clk 0:02:30.3]} 16. Qd3 {[%clk 0:02:08.9]} 16... g5
{[%clk 0:02:26.7]} 17. f3 {[%clk 0:02:08.3]} 17... Nf6 {[%clk 0:02:25.9]} 18. d5
{[%clk 0:01:59.4]} 18... e5 {[%clk 0:02:22.4]} 19. Qxf5 {[%clk 0:01:50.5]} 19...
Nxd5 {[%clk 0:02:18.9]} 20. Qd3 {[%clk 0:01:48]} 20... Nf6 {[%clk 0:02:15.2]}
21. c5 {[%clk 0:01:40.6]} 21... bxc5 {[%clk 0:02:05.4]} 22. bxc5 {[%clk
0:01:40]} 22... Rad8 {[%clk 0:02:04.8]} 23. Rad1 {[%clk 0:01:33.9]} 23... e4
{[%clk 0:01:45.1]} 24. Qb3+ {[%clk 0:01:27]} 24... Bd5 {[%clk 0:01:43.2]} 25.
Rxd5 {[%clk 0:01:26.5]} 25... Nxd5 {[%clk 0:01:43.7]} 26. Qxd5+ {[%clk
0:01:25.8]} 26... Rf7 {[%clk 0:01:44.3]} 27. fxe4 {[%clk 0:01:18.4]} 27... Rf8
{[%clk 0:01:41.8]} 28. Bc4 {[%clk 0:01:17.8]} 1-0